fUSD/lending_fUSD_20240612
["ID","MTS","AMOUNT","RATE_DAILY","PERIOD"]
[329184816,1718158442479,-1000.0,0.000138,2]
[329184817,1718158442507,-480.92,0.00013883,2]
[329184818,1718158442536,-500.0,0.00013887,2]
[329184819,1718158442562,-200.0,0.00013887,2]
[329184820,1718158442593,-500.0,0.00013888,2]
[329184821,1718158442624,-500.0,0.00013888,2]
[329184822,1718158442652,-200.0,0.00013888,2]
[329184823,1718158442680,-702.19,0.0001389,3]
[329184824,1718158442708,-1070.49455308,0.00013898,2]
[329184825,1718158442737,-386.74051673,0.00013898,2]
[329184826,1718158442763,-1260.52917321,0.00013898,2]
[329184827,1718158442791,-155.78778302,0.00013898,2]
[329184828,1718158442819,-170.40459741,0.00013898,2]
[329184829,1718158442849,-1005.1523046,0.00013898,2]
[329184830,1718158442902,-1641.1195694,0.00013898,2]
[329184831,1718158442931,-451.79619489,0.00013898,2]
[329184832,1718158442961,-1629.13176585,0.00013898,2]
[329184833,1718158442988,-442.2650105,0.00013898,2]
[329184834,1718158443015,-269.33067083,0.00013898,2]
[329184835,1718158443042,-155.51886682,0.00013898,2]
[329184836,1718158443070,-309.17558575,0.00013898,2]
[329184837,1718158443096,-867.38727753,0.00013898,2]
[329184838,1718158443123,-265.90838865,0.00013898,2]
[329184839,1718158443148,-156.38587268,0.00013898,2]
[329184840,1718158443178,-155.39257327,0.00013898,2]
[329184841,1718158443209,-581.81176425,0.00013898,2]
[329184842,1718158443235,-234.66797801,0.00013898,2]
[329184843,1718158443262,-1229.99178767,0.00013898,2]
[329184844,1718158443288,-3397.51955234,0.00013898,2]
[329184845,1718158443315,-10458.38369501,0.00013898,2]
[329184846,1718158443345,-787.31172062,0.00013898,2]
[329184847,1718158443383,-690.99405649,0.00013898,2]
[329184848,1718158443421,-291.4206529,0.00013899,2]
[329184849,1718158443450,-1086.36503754,0.00013899,5]
[329184850,1718158443479,-4770.0,0.000139,2]
[329184851,1718158443509,-28607.85591537,0.000139,2]
[329184852,1718158443538,-7500.0,0.000139,2]
[329184853,1718158443567,-196.15640646,0.000139,2]
[329184854,1718158443599,-356.40577788,0.000139,2]
[329184855,1718158443628,-152.87,0.0001399,2]
[329184856,1718158443658,-152.87,0.0001399,2]
[329184857,1718158443686,-152.87,0.0001399,2]
[329184858,1718158443716,-152.87,0.0001399,2]
[329184859,1718158443748,-152.87,0.0001399,2]
[329184860,1718158443787,-152.87,0.0001399,2]
[329184861,1718158443828,-208.24030706,0.00013998,2]
[329184862,1718158443857,-4311.5521438,0.00013998,2]
[329184863,1718158443884,-1299.4637378,0.00013998,2]
[329184864,1718158443913,-35750.3475921,0.00013998,2]
[329184865,1718158443940,-790.66034622,0.00013999,2]
[329184866,1718158443968,-2314.67783058,0.00013999,2]
[329184867,1718158443994,-333.74011988,0.00013999,2]
[329184869,1718158444023,-162.97039255,0.00013999,2]
[329184870,1718158444051,-2181.59446457,0.00013999,2]
[329184871,1718158444079,-648.0,0.00014,2]
[329184872,1718158444112,-396479.64125954,0.00014,2]
[329184876,1718158499944,2823.2101,0.00011991,2]
[329184931,1718159253135,-2823.75635135,0.00012832,2]
[329184932,1718159253162,-222.11184242,0.00012833,2]
[329184938,1718159433041,-150.0,0.0001283,2]
[329184939,1718159433052,-20756.75793379,0.00012831,2]
[329184940,1718159433146,-315.0,0.00012831,2]
[329184941,1718159434161,-2176.87940435,0.00012831,2]
[329184942,1718159434190,-351.68374011,0.00012831,2]
[329184943,1718159434209,-521.97670531,0.00012831,2]
[329184944,1718159434255,-474.46635641,0.00012831,2]
[329184945,1718159434272,-1420.97727954,0.00012831,2]
[329184946,1718159434287,-1339.32568212,0.00012831,2]
[329184947,1718159434326,-2719.05049637,0.00012831,2]
[329184948,1718159434350,-297.182565,0.00012831,2]
[329184949,1718159434415,-12611.04820383,0.00012831,2]
[329184950,1718159434429,-7800.69533894,0.00012831,2]
[329184951,1718159434444,-78699.10507935,0.00012831,2]
[329184952,1718159434483,-569.99999994,0.00012831,2]
[329184953,1718159434500,-351.899999,0.00012831,2]
[329184954,1718159434561,-410.62629583,0.00012831,2]
[329184955,1718159434576,-422.76314946,0.00012831,2]
[329184956,1718159434590,-2478.29101073,0.00012831,2]
[329184957,1718159434606,-556.70320369,0.00012831,2]
[329184958,1718159434622,-10250.70330729,0.00012831,2]
[329184959,1718159435743,-1433.51391152,0.00012831,2]
[329184960,1718159435759,-11851.35148038,0.00012831,2]
[329184961,1718159435804,-1383.0,0.00012832,2]
[329184962,1718159435816,-210.70815758,0.00012833,2]
[329184963,1718159435828,-354.20236484,0.00012833,2]
[329184964,1718159435839,-4074.44314581,0.00012833,2]
[329184965,1718159435852,-888.38425387,0.00012833,2]
[329184966,1718159435866,-733.78492313,0.00012833,2]
[329184967,1718159435882,-560.2023371,0.00012833,2]
[329184968,1718159435899,-2360.35387545,0.00012833,2]
[329184970,1718159439031,-162.642962,0.00012765,2]
[329184971,1718159439051,-1074.24734579,0.00012833,2]
[329184972,1718159439069,-1392.37172164,0.00012833,2]
[329184973,1718159439190,-746.89027862,0.00012833,2]
[329184974,1718159439227,-16318.24771686,0.00012833,2]
[329184975,1718159439246,-548.09566506,0.00012833,2]
[329184976,1718159439261,-494.72760592,0.00012833,2]
[329184977,1718159439276,-1651.94935281,0.00012833,2]
[329184978,1718159439297,-1145.08013776,0.00012833,2]
[329184979,1718159439341,-2072.10473281,0.00012833,2]
[329184980,1718159439359,-621.16043653,0.00012833,2]
[329184981,1718159439373,-277.98534559,0.00012833,2]
[329184982,1718159439494,-526.1421913,0.00012833,2]
[329184983,1718159439509,-785.23100942,0.00012833,2]
[329184984,1718159439526,-1637.09935816,0.00012833,2]
[329184985,1718159439552,-2295.22101184,0.00012833,2]
[329184986,1718159439568,-4440.864085,0.00012833,2]
[329184987,1718159439582,-1275.36257132,0.00012833,2]
[329184988,1718159439827,-157810.00114296,0.00012833,2]
[329184989,1718159439928,-2145.76887824,0.00012833,2]
[329185062,1718159441650,-681.43362743,0.00012833,2]
[329185064,1718159441663,-825.14433453,0.00012833,2]
[329185096,1718159442292,-51450.38497916,0.00012833,2]
[329185122,1718159442671,-21177.90263478,0.00012833,2]
[329185124,1718159442682,-1000.0,0.00013758,2]
[329185125,1718159442693,-308.7402,0.000138,2]
[329185127,1718159442705,-22207.6663,0.000138,2]
[329185129,1718159442717,-171.6368556,0.000138,2]
[329185131,1718159442728,-356.40577788,0.000138,2]
[329185133,1718159442739,-1324.15088,0.0001386,2]
[329185135,1718159442750,-4310.90983593,0.00013884,2]
[329185137,1718159442762,-560.97,0.00013885,2]
[329185139,1718159442802,-864.72790662,0.00013896,2]
[329185141,1718159442821,-2005.79027352,0.00013896,2]
[329185143,1718159442832,-346.85913737,0.00013896,2]
[329185145,1718159442844,-406.36110445,0.00013896,2]
[329185147,1718159442854,-268.27796725,0.00013896,2]
[329185149,1718159442865,-10538.97339168,0.00013896,2]
[329185151,1718159442875,-366.50050051,0.00013896,2]
[329185153,1718159442889,-317.9539497,0.00013896,2]
[329185155,1718159442899,-155.17787826,0.00013896,2]
[329185157,1718159442915,-2195.01899183,0.00013896,2]
[329185159,1718159442926,-238.24888687,0.00013896,2]
[329185161,1718159442940,-2369.42831983,0.00013896,2]
[329185163,1718159442953,-2188.91305317,0.00013897,2]
[329185165,1718159442965,-1000.0,0.00013898,2]
[329185167,1718159442980,-31193.72117183,0.00013898,2]
[329185182,1718159443149,-861.77209139,0.00013898,2]
[329185184,1718159443163,-876.00000001,0.00013898,2]
[329185186,1718159443177,-3460.3533237,0.00013898,2]
[329185188,1718159443191,-445.08422973,0.00013898,2]
[329185192,1718159443229,-754.4407858,0.00013898,2]
[329185194,1718159443243,-691.6268094,0.00013898,2]
[329185196,1718159443257,-8834.29170271,0.00013898,2]
[329185198,1718159443275,-3885.68981645,0.00013898,2]
[329185242,1718159444087,-936.16262283,0.00013898,2]
[329185248,1718159444248,-745.199729,0.00013898,2]
[329185250,1718159444261,-421.3,0.00013898,2]
[329185252,1718159444274,-1685.825,0.00013898,2]
[329185282,1718159447295,-1650.24238056,0.00013898,2]
[329185283,1718159447309,-806.80596695,0.00013898,2]
[329185284,1718159447323,-420.82499,0.00013898,2]
[329185285,1718159447335,-1686.35,0.00013898,2]
[329185286,1718159447348,-6657.95335533,0.00013898,2]
[329185287,1718159447646,-380.94819959,0.00013898,2]
[329185288,1718159447658,-368.59145831,0.00013898,2]
[329185289,1718159447670,-1932.25,0.00013898,2]
[329185290,1718159447682,-25676.40889033,0.00013898,2]
[329185291,1718159447824,-3625.5733598,0.00013898,2]
[329185292,1718159447836,-33709.67237892,0.00013898,2]
[329185293,1718159447848,-108698.92257614,0.00013898,2]
[329185294,1718159447973,-2951.19358959,0.00013898,2]
[329185295,1718159447985,-620.53980725,0.00013898,2]
[329185296,1718159447998,-286.40162517,0.00013898,2]
[329185297,1718159448122,-735.85413921,0.00013898,2]
[329185298,1718159448133,-26223.86792245,0.000139,2]
[329185299,1718159448143,-7500.0,0.000139,2]
[329185300,1718159448154,-250.0,0.00013924,2]
[329185301,1718159448165,-152.87,0.00013988,2]
[329185302,1718159448176,-152.87,0.0001399,2]
[329185303,1718159448186,-35597.87375105,0.00013998,2]
[329185304,1718159448197,-1281.33246234,0.00013998,2]
[329185305,1718159448207,-1262.4161175,0.00013998,2]
[329185306,1718159448218,-388.19843471,0.00013999,2]
[329185307,1718159448230,-530.0,0.00014,2]
[329185308,1718159448241,-202438.44035577,0.00014,2]
[329185309,1718159448287,-713.10704317,0.00014,2]
[329185310,1718159448301,-316.156902,0.00014,2]
[329185311,1718159448429,-2104.73194767,0.00014,2]
[329185312,1718159448442,-456.61615107,0.00014,2]
[329185315,1718159645751,40384.78633033,0.000118,2]
[329185316,1718159652803,15625.13815425,0.00011,2]
[329185317,1718159739042,59375.09566435,0.00025,14]
[329185319,1718160122953,447.74,0.00011178,2]
[329185332,1718160471324,959.93884427,0.00010619,2]
[329185333,1718160537328,192398.86649904,0.00010619,2]
[329185352,1718160632736,-172.12012373,0.000124,2]
[329185353,1718160632746,-237.00133731,0.000125,2]
[329185354,1718160632768,-51.38192924,0.000125,2]
[329185355,1718160632779,-153.32255091,0.00012632,2]
[329185356,1718160632789,-93.1580857,0.00012733,2]
[329185357,1718160633002,-906.8419143,0.00012733,2]
[329185358,1718160633013,-250.0,0.00012742,2]
[329185359,1718160633023,-250.0,0.00012812,2]
[329185360,1718160633033,-1000.0,0.00012899,2]
[329185361,1718160633043,-150.0,0.00012959,2]
[329185362,1718160633054,-300.0,0.00012979,2]
[329185363,1718160633064,-1992.45,0.00012979,2]
[329185364,1718160633075,-3901.11799853,0.0001298,2]
[329185365,1718160633085,-5177.95911364,0.0001298,2]
[329185366,1718160633098,-4979.88088636,0.0001298,2]
[329185367,1718160633108,-1400.09669462,0.00013,2]
[329185368,1718160633118,-499.99,0.00013,2]
[329185369,1718160633129,-10503.37273456,0.00013078,2]
[329185370,1718160633139,-150.0,0.00013087,2]
[329185371,1718160633149,-5059.31248299,0.00013088,2]
[329185372,1718160633171,-34077.89918757,0.00013088,2]
[329185373,1718160633182,-447.74,0.00013442,2]
[329185374,1718160633193,-180.85,0.00013699,2]
[329185375,1718160633203,-164.22,0.00013699,2]
[329185376,1718160633214,-150.18224865,0.000137,2]
[329185377,1718160633224,-3664.0863551,0.00013784,2]
[329185378,1718160633235,-305.69402281,0.00013796,2]
[329185379,1718160633246,-298.5365003,0.00013796,2]
[329185380,1718160633256,-264.67926275,0.00013797,2]
[329185381,1718160633267,-162.30085639,0.00013797,2]
[329185382,1718160633279,-5002.43160781,0.00013798,2]
[329185383,1718160633311,-574.32971375,0.00013798,2]
[329185384,1718160633323,-3880.42848261,0.00013798,2]
[329185385,1718160633469,-514.29235671,0.00013798,2]
[329185395,1718160639549,-1053.42088969,0.00013798,2]
[329185396,1718160639728,-332.57131004,0.00013798,2]
[329185397,1718160639750,-2349.40480559,0.00013798,2]
[329185398,1718160639858,-6382.90299923,0.00013798,2]
[329185399,1718160639872,-300.7802055,0.00013798,2]
[329185400,1718160639998,-421.399227,0.00013798,2]
[329185401,1718160640011,-6081.73346951,0.00013798,2]
[329185402,1718160640253,-1539.6968488,0.00013798,2]
[329185403,1718160640600,-29954.14137266,0.00013798,2]
[329185454,1718160641146,-753.21999999,0.00013798,2]
[329185483,1718160641502,-4658.37809792,0.00013798,2]
[329185484,1718160641841,-181200.86861319,0.00013798,2]
[329185485,1718160641852,-1555.51055297,0.000138,2]
[329185486,1718160641864,-500.0,0.00013887,2]
[329185487,1718160641875,-500.0,0.00013888,2]
[329185488,1718160641887,-200.0,0.00013888,2]
[329185489,1718160641902,-24038.54559557,0.000139,2]
[329185490,1718160641912,-5937.68828714,0.000139,2]
[329185491,1718160641922,-356.40577788,0.000139,2]
[329185492,1718160641933,-152.88,0.0001399,2]
[329185493,1718160641943,-5711.7132444,0.00013998,2]
[329185494,1718160641954,-1091.157405,0.00013998,5]
[329185495,1718160641964,-33076.07064056,0.00013999,2]
[329185496,1718160641975,-270.0307179,0.00013999,2]
[329185497,1718160641987,-1091.157405,0.00013999,5]
[329185498,1718160641998,-1091.15740501,0.00013999,5]
[329185499,1718160642009,-25877.84387372,0.00014,2]
[329185500,1718160642080,-336.40858246,0.00014,2]
[329185501,1718160642093,-4389.13750092,0.00014,2]
[329185502,1718160642106,-8800.555456,0.00014,2]
[329185503,1718160642136,-2275024.40129898,0.00014,2]
[329185504,1718160642190,-2250.34971316,0.00014,2]
[329185569,1718160643643,-609.27036768,0.000137,2]
[329185570,1718160643653,-2389.81118969,0.00014,2]
[329185580,1718160646122,-1250.50375497,0.00014,2]
[329185582,1718160646135,-74674.364095,0.00014,2]
[329185583,1718160646156,-333.82751492,0.00014,2]
[329185584,1718160646171,-1151.06746,0.00014,2]
[329185648,1718160646915,-225744.06506957,0.00014,2]
[329185663,1718160648771,-218.15331281,0.00013999,2]
[329185665,1718160648781,-16377.43470124,0.00014,2]
[329185739,1718160657899,155.09478721,0.00010499,2]
[329185740,1718160708129,462.38,0.00011994,2]
[329185741,1718160721857,103739.57570836,0.00010499,2]
[329185742,1718160779862,203.96,0.00010579,2]
[329185744,1718161011664,-665.84215115,0.00012199,2]
[329185745,1718161011688,-665.84215115,0.00012296,2]
[329185746,1718161011712,-2156.3156977,0.00012296,2]
[329185769,1718161286168,459.82,0.00010872,2]
[329185770,1718161431071,3032.44622565,0.00028,90]
[329185774,1718161633300,-522.77803504,0.00012291,2]
[329185775,1718161633325,-155.0,0.00012291,2]
[329185776,1718161633350,-786.67595882,0.00012292,2]
[329185777,1718161633375,-1249.76802523,0.00012293,2]
[329185778,1718161633400,-287.3583,0.000123,2]
[329185779,1718161633426,-150.0,0.00012592,2]
[329185780,1718161633451,-425.56470909,0.00012598,2]
[329185781,1718161633475,-250.0,0.00012882,2]
[329185782,1718161633500,-165.11,0.00012886,2]
[329185783,1718161633525,-1000.0,0.00012916,2]
[329185784,1718161633549,-1303.00649786,0.00012916,2]
[329185785,1718161633576,-250.0,0.00013014,2]
[329185786,1718161633602,-459.82,0.00013136,2]
[329185787,1718161633628,-150.0,0.00013439,2]
[329185788,1718161633677,-300.0,0.00013439,2]
[329185789,1718161633703,-148.57429336,0.0001344,2]
[329185790,1718161819494,433.37,0.00010996,2]
[329185799,1718161831951,-1541.9914002,0.00012191,2]
[329185800,1718161831963,-912.27462891,0.00012191,2]
[329185801,1718161832255,-787.72537109,0.00012191,2]
[329185802,1718161832268,-638.49582452,0.00012191,2]
[329185803,1718161832447,-1219.66417528,0.00012191,2]
[329185804,1718161832459,-45.2579562,0.00012935,2]
[329185805,1718161832471,-109.7420438,0.00012935,2]
[329185806,1718161832482,-250.0,0.00012936,2]
[329185807,1718161832492,-400.10252741,0.00013188,2]
[329185808,1718161832526,-105.89747259,0.00013188,2]
[329185809,1718161832536,-962.80469824,0.00013189,2]
[329185810,1718161832762,-37.19530176,0.00013189,2]
[329185811,1718161832774,-250.0,0.0001319,2]
[329185812,1718161832786,-433.37,0.0001326,2]
[329185813,1718161832797,-237.33077235,0.0001344,2]
[329185814,1718161832810,-150.0,0.0001352,2]
[329185815,1718161832821,-150.0,0.0001352,2]
[329185816,1718161832831,-300.0,0.00013521,2]
[329185817,1718161832843,-1264.69072927,0.00013522,2]
[329185869,1718161838278,-1347.93732918,0.00013522,2]
[329185870,1718161838290,-5340.80255405,0.00013522,2]
[329185871,1718161838343,-20443.95744595,0.00013522,2]
[329185872,1718161838354,-165.11,0.00013558,2]
[329185873,1718161838366,-340.3756668,0.00013596,2]
[329185874,1718161838377,-157.67296212,0.00013596,2]
[329185875,1718161838387,-1711.73751858,0.00013596,2]
[329185876,1718161838398,-155.0,0.00013596,2]
[329185877,1718161838408,-522.69878769,0.00013596,2]
[329185878,1718161838419,-786.25655368,0.00013596,2]
[329185879,1718161838429,-1249.56334718,0.00013596,2]
[329185880,1718161838440,-1904.39,0.00013596,2]
[329185881,1718161838450,-5090.86467494,0.00013597,2]
[329185882,1718161838461,-1522.79688045,0.00013597,2]
[329185883,1718161838605,-1143.28311955,0.00013597,2]
[329185884,1718161838617,-499.99,0.00013597,2]
[329185885,1718161838627,-150.99,0.00013597,2]
[329185886,1718161838637,-41062.5448918,0.00013598,2]
[329185887,1718161838709,-262.65011809,0.00013598,2]
[329185896,1718161840564,-76974.41549011,0.00013598,2]
[329185897,1718161840577,-2519.6282,0.00013598,2]
[329185898,1718161840589,-6687.7522,0.00013598,2]
[329185899,1718161840602,-20140.27226807,0.00013695,2]
[329185900,1718161840613,-155.21486385,0.00013696,2]
[329185901,1718161840624,-2378.35580108,0.00013696,2]
[329185902,1718161840636,-131499.2798,0.00013698,2]
[329185903,1718161840647,-19071.6334,0.00013698,2]
[329185904,1718161840658,-13144.207,0.00013698,2]
[329185905,1718161840669,-660.5616,0.00013698,2]
[329185906,1718161840680,-7107.8237,0.00013698,2]
[329185907,1718161840691,-172.93,0.00013699,2]
[329185908,1718161840702,-180.85,0.00013699,2]
[329185909,1718161840726,-335.4252101,0.0001376,2]
[329185910,1718161840753,-234.54755841,0.00013798,2]
[329185911,1718161840767,-29271.021,0.0001386,2]
[329185912,1718161840780,-14191.53390704,0.0001386,2]
[329185913,1718161840796,-15079.48709296,0.0001386,2]
[329185914,1718161840810,-29271.022,0.0001386,2]
[329185915,1718161840821,-29271.021,0.0001386,2]
[329185916,1718161840832,-29271.022,0.0001386,2]
[329185917,1718161840843,-200.0,0.00013887,2]
[329185918,1718161840855,-200.0,0.00013888,2]
[329185919,1718161840868,-500.0,0.00013888,2]
[329185920,1718161840879,-200.0,0.00013888,2]
[329185921,1718161840889,-257.19409642,0.0001389,2]
[329185922,1718161840900,-70449.60098542,0.000139,2]
[329185923,1718161841188,-179550.39901458,0.000139,2]
[329185924,1718161841199,-1018.0,0.000139,2]
[329185925,1718161841210,-216.76355402,0.00013933,2]
[329185926,1718161841222,-2339.26684083,0.00013998,2]
[329185927,1718161841233,-1253.59956446,0.00013998,2]
[329185928,1718161841244,-155.41281554,0.00013998,2]
[329185929,1718161841255,-364.78710725,0.00013998,2]
[329185930,1718161841266,-2327.95961074,0.00013998,2]
[329185931,1718161841277,-431.03788794,0.00013998,2]
[329185932,1718161841292,-163.91566664,0.00013998,2]
[329185933,1718161841304,-1219.43718831,0.00013998,2]
[329185934,1718161841316,-316.92510636,0.00013998,2]
[329185935,1718161841326,-9222.56534114,0.00013998,2]
[329185936,1718161841338,-2369.42831983,0.00013999,2]
[329185937,1718161841352,-453.49654734,0.00013999,2]
[329185938,1718161841362,-218.47939903,0.00013999,2]
[329185939,1718161841373,-500375.0296541,0.00014,2]
[329185940,1718161841426,-254.69846865,0.00014,2]
[329185941,1718161841439,-1048.21934277,0.00014,2]
[329185976,1718161842944,-430244.056178,0.00014,2]
[329185979,1718161842957,-630.14966299,0.00014,2]
[329185980,1718161843006,-3255.26744422,0.00014,2]
[329185981,1718161843071,-1159.15432231,0.00014,2]
[329185982,1718161843256,-1349.46,0.00014,2]
[329185997,1718161846368,-85043.41675487,0.00014,2]
[329185998,1718161846380,-1047.87858228,0.00014,2]
[329185999,1718161846390,-25538.31049305,0.00014,2]
[329186038,1718161859317,785.7,0.00010959,2]
[329186039,1718161923492,20260.85855017,0.00010959,2]
[329186040,1718161923898,1188.31038683,0.00010959,2]
[329186041,1718161942963,4761.39790031,0.00010959,2]
[329186042,1718161958711,2722.18149341,0.00010959,2]
[329186044,1718162394185,155.19050497,0.00010959,2]
[329186045,1718162412012,155.369048,0.00010959,2]
[329186046,1718162486699,455.61,0.0001114,2]
[329186047,1718162839166,-155.0,0.00012743,2]
[329186048,1718162839192,-155.0,0.00012744,2]
[329186049,1718162839221,-250.0,0.00012745,2]
[329186050,1718162839250,-171.25,0.00012803,2]
[329186051,1718162839276,-2314.63470574,0.00013166,2]
[329186052,1718162925844,163.28,0.00010312,2]
[329186058,1718163032836,-155.0,0.00012742,2]
[329186059,1718163032849,-250.0,0.00012897,2]
[329186060,1718163032862,-1000.0,0.00012961,2]
[329186061,1718163032875,-438.57,0.00013056,2]
[329186062,1718163032889,-1118.64062863,0.00013167,2]
[329186063,1718163032901,-204.5,0.00013299,2]
[329186064,1718163032914,-215.86,0.00013327,2]
[329186065,1718163032926,-300.0,0.00013337,2]
[329186066,1718163032939,-150.0,0.00013337,2]
[329186067,1718163032950,-2823.75635135,0.00013338,2]
[329186068,1718163032962,-499.99,0.00013338,2]
[329186069,1718163032974,-388.84447545,0.00013338,2]
[329186070,1718163032988,-158.01869573,0.00013339,2]
[329186071,1718163033002,-1231.39240591,0.00013339,2]
[329186072,1718163033015,-2151.25412191,0.0001334,2]
[329186073,1718163033031,-681.39069848,0.0001334,2]
[329186074,1718163033093,-929.93751493,0.0001334,2]
[329186075,1718163033109,-35734.55954236,0.0001334,2]
[329186076,1718163033128,-60263.09069629,0.0001334,2]
[329186077,1718163033143,-7210.56446147,0.0001334,2]
[329186078,1718163033222,-1666.21666469,0.0001334,2]
[329186079,1718163033237,-741.8811006,0.0001334,2]
[329186080,1718163033302,-2456.09841182,0.0001334,2]
[329186081,1718163033320,-21615.23528745,0.0001334,2]
[329186082,1718163033336,-497.8815,0.0001334,2]
[329186083,1718163033357,-728.9039,0.0001334,2]
[329186084,1718163033372,-1000.0,0.0001334,2]
[329186085,1718163033386,-2500.0,0.0001334,2]
[329186086,1718163033400,-995.39,0.0001334,2]
[329186087,1718163033414,-1429.49,0.0001334,2]
[329186088,1718163033428,-455.61,0.00013404,2]
[329186089,1718163033441,-162.80706654,0.00013438,2]
[329186090,1718163033453,-406.13051263,0.00013438,2]
[329186091,1718163033466,-288.66023203,0.00013438,2]
[329186092,1718163033480,-2199.22684884,0.00013438,2]
[329186093,1718163033494,-309.27138856,0.00013438,2]
[329186094,1718163033508,-170.09242682,0.00013438,2]
[329186095,1718163033525,-167.24815434,0.00013438,2]
[329186096,1718163033537,-201.94300209,0.00013438,2]
[329186097,1718163033549,-338.68138464,0.00013439,3]
[329186098,1718163033562,-1439.6868235,0.0001344,2]
[329186099,1718163033585,-2197.83270384,0.0001344,2]
[329186100,1718163033671,-237288.30594197,0.0001344,2]
[329186101,1718163033684,-168.41,0.00013699,2]
[329186102,1718163033699,-634.07,0.00013699,2]
[329186103,1718163033713,-323.80062569,0.000138,2]
[329186104,1718163033726,-500.0,0.00013888,2]
[329186105,1718163033739,-200.0,0.00013888,2]
[329186106,1718163033758,-166.11,0.0001389,2]
[329186107,1718163033773,-245000.0,0.000139,2]
[329186108,1718163033820,-23150.80713327,0.000139,2]
[329186109,1718163033840,-183.70473489,0.000139,2]
[329186110,1718163033861,-16827.3594,0.000139,2]
[329186111,1718163033884,-570.4298,0.000139,2]
[329186112,1718163033901,-250000.0,0.000139,2]
[329186113,1718163033919,-178.26417708,0.000139,2]
[329186114,1718163033934,-542.62,0.000139,2]
[329186115,1718163033948,-201.68843355,0.000139,2]
[329186116,1718163033966,-4987.26256425,0.000139,2]
[329186117,1718163033979,-158.50984108,0.00013964,2]
[329186118,1718163033996,-3170.28817359,0.00013964,2]
[329186119,1718163034009,-216.18198356,0.00013999,2]
[329186120,1718163034033,-441.40743891,0.00013999,2]
[329186121,1718163034053,-786.3940397,0.00013999,2]
[329186122,1718163034068,-172.86247748,0.00013999,2]
[329186123,1718163034086,-7647.26636971,0.00013999,2]
[329186124,1718163034111,-261.85728038,0.00013999,2]
[329186125,1718163034140,-682.88125423,0.00013999,2]
[329186126,1718163034157,-502.0,0.00014,2]
[329186127,1718163034180,-46381.03261103,0.00014,2]
[329186128,1718163034256,-6075.0,0.00014,2]
[329186129,1718163034279,-700.0,0.00014,2]
[329186130,1718163034295,-1055.77818754,0.00014,2]
[329186131,1718163034342,-32642.10229701,0.00014,2]
[329186132,1718163034360,-2748.05976961,0.00014,2]
[329186133,1718163034378,-447.3187091,0.00014,2]
[329186134,1718163034434,-1212.8,0.00014,2]
[329186135,1718163034455,-2522.06617273,0.00014,2]
[329186136,1718163034477,-7384.92556584,0.00014,2]
[329186137,1718163034510,-3064.60664569,0.00014,2]
[329186138,1718163034526,-2700.39942654,0.00014,2]
[329186139,1718163034557,-301.90641716,0.00014,2]
[329186147,1718163038633,-5091.5469481,0.00014,2]
[329186148,1718163038742,-5258.17319065,0.00014,2]
[329186149,1718163038758,-3180.47803298,0.00014,2]
[329186150,1718163039131,-1425.25188922,0.00014,2]
[329186151,1718163039384,-6453.84807915,0.00014,2]
[329186152,1718163039399,-2022.87376191,0.00014,2]
[329186153,1718163039421,-1829.6655901,0.00014,2]
[329186154,1718163039435,-438.29,0.00014,2]
[329186155,1718163039449,-11827.7989975,0.00014,2]
[329186156,1718163039630,-853.08727691,0.00014,2]
[329186160,1718163041424,-74183.29301057,0.00014,2]
[329186161,1718163041438,-832.86342402,0.00014,2]
[329186162,1718163041459,-489.47653646,0.00014,2]
[329186163,1718163042110,-708.505,0.00014,2]
[329186164,1718163042122,-1194.11866656,0.00014,2]
[329186165,1718163042160,-2174.05117629,0.00014,2]
[329186166,1718163042249,-3379.91944124,0.00014,2]
[329186167,1718163042263,-3896.57759999,0.00014,2]
[329186168,1718163042364,-1487.92434299,0.00014,2]
[329186169,1718163042377,-387.72733961,0.00014,2]
[329186170,1718163042475,-7438.08143409,0.00014,2]
[329186171,1718163042488,-187557.50401675,0.00014,2]
[329186172,1718163042510,-1191.01580158,0.00014,2]
[329186173,1718163042541,-1071.144,0.00014,2]
[329186174,1718163042577,-258.11,0.00014,2]